bitfinex-derivatives/quotes_BTCF0:USTF0_20260106
["timestamp","ask_amount","ask_price","bid_price","bid_amount"]
[1767709643332,0.09012,94384.0,94364.0,0.010599]
[1767709643738,0.010598,94378.0,94361.0,0.0106]
[1767709644235,0.09708599,94383.0,94353.0,0.09057844]
[1767709644427,0.09708599,94383.0,94356.0,0.0106]
[1767709644634,0.010599,94372.0,94357.0,0.0106]
[1767709644938,0.09708599,94381.0,94355.0,0.00051999]
[1767709645139,0.09012,94384.0,94360.0,0.1603761]
[1767709645339,0.010597,94382.0,94366.0,0.010599]
[1767709645537,0.09708599,94387.0,94361.0,0.00051999]
[1767709646041,0.09708599,94387.0,94363.0,0.01111899]
[1767709646341,0.09708599,94387.0,94364.0,0.09012]
[1767709646934,0.09708599,94387.0,94366.0,0.010599]
[1767709647242,0.09708599,94387.0,94364.0,0.09124947]
[1767709647744,0.09708599,94387.0,94364.0,0.09012]
[1767709648040,0.010598,94379.0,94364.0,0.09012]
[1767709648432,0.09708599,94385.0,94364.0,0.09012]
[1767709648433,0.010598,94377.0,94364.0,0.09012]
[1767709649138,0.010598,94373.0,94364.0,0.09012]
[1767709649343,0.10768399,94373.0,94361.0,0.09400483]
[1767709649545,0.10768399,94373.0,94357.0,0.09012]
[1767709649746,0.09708599,94373.0,94357.0,0.09012]
[1767709649937,0.09708599,94373.0,94358.0,0.0106]
[1767709650137,0.09708599,94373.0,94357.0,0.09012]
[1767709650537,0.09708599,94373.0,94365.0,0.00487506]
[1767709650737,0.010599,94371.0,94365.0,0.00487506]
[1767709650935,0.09708599,94373.0,94365.0,0.00487506]
[1767709651335,0.10768399,94373.0,94365.0,0.00487506]
[1767709651531,0.09708599,94373.0,94365.0,0.00487506]
[1767709652140,0.010598,94375.0,94365.0,0.00487506]
[1767709652340,0.09981674,94377.0,94365.0,0.00487506]
[1767709652537,0.09981674,94376.0,94365.0,0.00487506]
[1767709652743,0.010599,94371.0,94365.0,0.00487506]
[1767709653031,0.11041574,94371.0,94365.0,0.00487506]
[1767709653236,0.11041574,94371.0,94357.0,0.09012]
[1767709653237,0.09981674,94368.0,94357.0,0.09012]
[1767709653637,0.010598,94374.0,94357.0,0.09012]
[1767709654240,0.09981674,94371.0,94361.0,0.00736959]
[1767709656145,0.09981674,94378.0,94362.0,0.0106]
[1767709656335,0.010595,94404.0,94361.0,0.00736959]
[1767709656336,0.09981674,94384.0,94368.0,0.15985611]
[1767709657048,0.09981674,94384.0,94365.0,0.010599]
[1767709658549,0.09981674,94384.0,94362.0,0.0106]
[1767709659452,0.11041374,94384.0,94362.0,0.0106]
[1767709659848,0.09981674,94384.0,94362.0,0.0106]
[1767709660038,0.09981674,94382.0,94361.0,0.00736959]
[1767709660238,0.09981674,94380.0,94364.0,0.010599]
[1767709660443,0.09981674,94378.0,94364.0,0.010599]
[1767709660851,0.07552946,94377.0,94361.0,0.00736959]
[1767709661046,0.09981674,94376.0,94361.0,0.00736959]
[1767709661253,0.09981674,94374.0,94361.0,0.00736959]
[1767709661549,0.09981674,94372.0,94361.0,0.00736959]
[1767709661845,0.09981674,94379.0,94361.0,0.00736959]
[1767709662257,0.09981674,94379.0,94368.0,0.010599]
[1767709663047,0.07552946,94385.0,94361.0,0.00736959]
[1767709663238,0.07552946,94385.0,94369.0,0.010599]
[1767709663444,0.07552946,94385.0,94369.0,0.100719]
[1767709664052,0.07552946,94385.0,94369.0,0.09012]
[1767709665153,0.09981674,94383.0,94369.0,0.09012]
[1767709666149,0.09981674,94383.0,94371.0,0.00736881]
[1767709666556,0.09981674,94383.0,94372.0,0.010598]
[1767709666956,0.09012,94391.0,94372.0,0.010598]
[1767709666957,0.09981674,94386.0,94372.0,0.010598]
[1767709667453,0.09981674,94384.0,94371.0,0.00736881]
[1767709667755,0.1753462,94384.0,94371.0,0.00736881]
[1767709667957,0.09981674,94383.0,94371.0,0.00736881]
[1767709668349,0.07552946,94382.0,94371.0,0.00736881]
[1767709668557,0.09981674,94381.0,94371.0,0.00736881]
[1767709668757,0.09981674,94380.0,94371.0,0.00736881]
[1767709669349,0.09981674,94393.0,94371.0,0.01796781]
[1767709669658,0.010596,94391.0,94372.0,0.010599]
[1767709669958,0.09981674,94393.0,94375.0,0.010598]
[1767709670154,0.1753462,94393.0,94377.0,0.010598]
[1767709670350,0.1753462,94393.0,94371.0,0.00736881]
[1767709670351,0.09981674,94391.0,94374.0,0.010598]
[1767709670551,0.09981674,94391.0,94373.0,0.010598]
[1767709670857,0.09981674,94390.0,94373.0,0.010598]
[1767709671662,0.09981674,94390.0,94380.0,0.12211868]
[1767709671860,0.09981674,94389.0,94380.0,0.12211868]
[1767709672453,0.09981674,94389.0,94379.0,0.1221205]
[1767709672658,0.09012,94401.0,94374.0,0.09400483]
[1767709672659,0.09981674,94387.0,94374.0,0.09400483]
[1767709672862,0.09981674,94387.0,94379.0,0.1221205]
[1767709673058,0.09981674,94387.0,94377.0,0.1221205]
[1767709673256,0.07552946,94393.0,94377.0,0.1221205]
[1767709673463,0.07552946,94393.0,94379.0,0.010598]
[1767709673659,0.07552946,94393.0,94378.0,0.010598]
[1767709674254,0.07552946,94400.0,94380.0,0.010598]
[1767709674665,0.07552946,94396.0,94377.0,0.010598]
[1767709674858,0.07552946,94394.0,94371.0,0.00736881]
[1767709675059,0.07552946,94394.0,94375.0,0.010598]
[1767709675261,0.09981674,94393.0,94375.0,0.010598]
[1767709675459,0.1753462,94391.0,94375.0,0.010598]
[1767709675669,0.07552946,94390.0,94372.0,0.010598]
[1767709675859,0.07552946,94390.0,94374.0,0.010598]
[1767709676059,0.07552946,94390.0,94376.0,0.010598]
[1767709676265,0.07552946,94390.0,94378.0,0.010598]
[1767709677151,0.16650571,94389.0,94376.0,0.010598]
[1767709678065,0.16650571,94388.0,94376.0,0.010598]
[1767709678255,0.16650571,94388.0,94369.0,0.09012]
[1767709678456,0.16650571,94388.0,94373.0,0.010598]
[1767709679562,0.07223802,94383.0,94369.0,0.09012]
[1767709679767,0.07223802,94379.0,94370.0,0.09012]
[1767709679960,0.07223802,94377.0,94368.0,0.09012]
[1767709680163,0.09426769,94378.0,94369.0,0.010599]
[1767709680366,0.09426769,94391.0,94370.0,0.06837933]
[1767709680568,0.09426769,94391.0,94378.0,0.010598]
[1767709680767,0.07223802,94396.0,94373.0,0.06837933]
[1767709681070,0.09426769,94395.0,94373.0,0.06837933]
[1767709681370,0.16400642,94394.0,94381.0,0.010597]
[1767709681666,0.16400642,94393.0,94379.0,0.010598]
[1767709681866,0.16400642,94393.0,94378.0,0.010598]
[1767709682068,0.16400642,94390.0,94378.0,0.010598]
[1767709682268,0.16400642,94389.0,94378.0,0.010598]
[1767709682667,0.16400642,94389.0,94380.0,0.010598]
[1767709683563,0.09588651,94389.0,94380.0,0.010598]
[1767709684666,0.09588651,94389.0,94377.0,0.010598]
[1767709684872,0.09588651,94389.0,94379.0,0.010598]
[1767709685272,0.09588651,94389.0,94381.0,0.010597]
[1767709685762,0.09588651,94389.0,94383.0,0.010597]
[1767709686262,0.09588651,94389.0,94380.0,0.010598]
[1767709686465,0.09588651,94389.0,94368.0,0.16380156]
[1767709686466,0.06811991,94389.0,94368.0,0.09012]
[1767709686769,0.01271245,94409.0,94365.0,0.09012]
[1767709686770,0.06811991,94380.0,94365.0,0.09012]
[1767709686978,0.06811991,94378.0,94361.0,0.09012]
[1767709687166,0.06811991,94376.0,94356.0,0.09012]
[1767709687668,0.06811991,94376.0,94363.0,0.010599]
[1767709687858,0.06811991,94376.0,94356.0,0.09012]
[1767709688066,0.06811991,94376.0,94369.0,0.010599]
[1767709688863,0.16400642,94376.0,94369.0,0.010599]
[1767709689059,0.16400642,94376.0,94366.0,0.010599]
[1767709689275,0.16400642,94375.0,94365.0,0.010599]
[1767709689571,0.16400642,94375.0,94367.0,0.010599]
[1767709689771,0.09588651,94374.0,94356.0,0.09012]
[1767709690360,0.09588651,94374.0,94366.0,0.010599]
[1767709690768,0.09588651,94374.0,94356.0,0.09012]
[1767709690963,0.09588651,94374.0,94357.0,0.0106]
[1767709691156,0.09588651,94374.0,94356.0,0.09012]
[1767709692065,0.06811991,94365.0,94356.0,0.01789422]
[1767709692263,0.09588651,94360.0,94349.0,0.09012]
[1767709692458,0.09588651,94360.0,94349.0,0.010601]
[1767709693073,0.09588651,94366.0,94348.0,0.09012]
[1767709693272,3.18295743,94480.0,94348.0,0.09012]
[1767709693273,0.010599,94371.0,94348.0,0.09012]
[1767709693469,0.010599,94371.0,94357.0,0.0106]
[1767709694175,0.010599,94371.0,94350.0,0.07368156]
[1767709694176,0.00246065,94376.0,94354.0,0.07368156]
[1767709694468,0.09588651,94384.0,94370.0,0.010599]
[1767709694673,0.09588651,94384.0,94362.0,0.07368156]
[1767709694674,0.10648351,94384.0,94362.0,0.07368156]
[1767709694875,0.10648351,94384.0,94369.0,0.010599]
[1767709695069,0.10648351,94384.0,94362.0,0.07368156]
[1767709695070,5.1e-07,94384.0,94362.0,0.07368156]
[1767709695380,0.010594,94413.0,94370.0,0.10690718]
[1767709695381,0.09012,94394.0,94370.0,0.10690718]
[1767709695575,0.09012,94393.0,94370.0,0.09630818]
[1767709696074,0.09012,94393.0,94380.0,0.010598]
[1767709696274,0.09012,94393.0,94370.0,0.09630818]
[1767709696275,0.010596,94399.0,94375.0,0.16998974]
[1767709696577,0.09012,94402.0,94383.0,0.010597]
[1767709697366,0.00311996,94401.0,94383.0,0.010597]
[1767709697569,0.09900647,94401.0,94383.0,0.010597]
[1767709697762,0.00230061,94400.0,94378.0,0.09630818]
[1767709697967,0.010596,94393.0,94377.0,0.010598]
[1767709698362,0.00230061,94396.0,94374.0,0.010598]
[1767709698568,0.01324332,94395.0,94373.0,0.09012]
[1767709698774,0.010596,94393.0,94377.0,0.010598]
[1767709699076,0.00264732,94394.0,94373.0,0.09012]
[1767709699466,0.01242553,94391.0,94373.0,0.09012]
[1767709699671,0.00182953,94390.0,94373.0,0.09012]
[1767709700174,0.09012,94402.0,94359.0,0.09630818]
[1767709700175,0.00182953,94383.0,94359.0,0.09630818]
[1767709700375,0.01175094,94389.0,94371.0,0.010599]
[1767709701374,0.01093812,94387.0,94368.0,0.010599]
[1767709701573,0.00034112,94387.0,94364.0,0.09630818]
[1767709702380,0.00034112,94387.0,94369.0,0.010599]
[1767709702580,0.01408535,94384.0,94364.0,0.09630818]
[1767709702871,0.010596,94398.0,94362.0,0.09012]
[1767709702872,0.00348835,94374.0,94362.0,0.09012]
[1767709703076,0.00348835,94373.0,94356.0,0.09012]
[1767709703475,0.00348835,94373.0,94356.0,0.10072]
[1767709704174,0.01408635,94373.0,94356.0,0.09012]
[1767709704376,0.00348835,94373.0,94359.0,0.0106]
[1767709704580,0.00255903,94382.0,94363.0,0.010599]
[1767709704879,0.00255903,94382.0,94360.0,0.0106]
[1767709705384,0.010598,94379.0,94357.0,0.10690818]
[1767709705685,0.00172994,94380.0,94357.0,0.10690818]
[1767709707178,0.010598,94377.0,94357.0,0.10690818]
[1767709707973,0.010598,94374.0,94357.0,0.09630818]
[1767709708183,0.05792911,94377.0,94353.0,0.09630818]
[1767709708482,0.0566111,94383.0,94360.0,0.09630818]
[1767709708980,0.0566111,94383.0,94342.0,0.09630818]
[1767709709183,0.010599,94367.0,94346.0,0.010601]
[1767709709575,0.0106,94363.0,94343.0,0.10691018]
[1767709710085,0.0106,94361.0,94343.0,0.09630818]
[1767709710683,0.00092505,94365.0,94343.0,0.09630818]
[1767709711384,0.010598,94378.0,94357.0,0.07567585]
[1767709711573,0.06203042,94379.0,94357.0,0.07567585]
[1767709711775,0.09012,94385.0,94357.0,0.07567585]
[1767709711776,0.010599,94370.0,94357.0,0.07567585]
[1767709712379,0.00010139,94366.0,94342.0,0.09465784]
[1767709712680,0.010599,94365.0,94344.0,0.09465784]
[1767709712985,0.0106,94362.0,94344.0,0.09465784]
[1767709713284,0.0106,94362.0,94346.0,0.09465784]
[1767709713469,0.0106,94362.0,94345.0,0.09012]
[1767709713470,0.0106,94362.0,94347.0,0.09465784]
[1767709713675,0.0106,94362.0,94348.0,0.09012]
[1767709714386,0.06364572,94367.0,94347.0,0.09465784]
[1767709714686,0.0106,94360.0,94347.0,0.09465784]
[1767709714876,0.0106,94360.0,94344.0,0.09012]
[1767709715073,0.06424876,94382.0,94346.0,0.17033369]
[1767709715283,0.07484576,94388.0,94361.0,0.07567585]
[1767709715486,0.010597,94386.0,94363.0,0.09465784]
[1767709715676,0.15354046,94387.0,94363.0,0.09465784]
[1767709715987,0.06342046,94384.0,94363.0,0.09465784]
[1767709716175,0.06342046,94384.0,94358.0,0.09012]
[1767709716176,0.010598,94375.0,94358.0,0.09012]
[1767709716486,0.010599,94372.0,94358.0,0.09012]
[1767709716683,0.010599,94372.0,94355.0,0.09465784]
[1767709716883,0.010599,94369.0,94348.0,0.18477784]
[1767709717083,0.0597102,94398.0,94349.0,0.09465784]
[1767709717286,0.0597102,94385.0,94355.0,0.09465784]
[1767709717591,0.09012,94384.0,94355.0,0.09465784]
[1767709717884,0.09012,94384.0,94360.0,0.09465784]
[1767709718686,0.15118818,94384.0,94360.0,0.09465784]
[1767709719476,0.06025046,94383.0,94360.0,0.09465784]
[1767709720085,0.06025046,94381.0,94360.0,0.09465784]
[1767709720590,0.06606437,94377.0,94354.0,0.09465784]
[1767709720781,0.06182311,94377.0,94355.0,0.10525784]
[1767709720983,0.09012,94376.0,94355.0,0.09465784]
[1767709721383,0.06182311,94375.0,94355.0,0.09465784]
[1767709723692,0.09012,94376.0,94355.0,0.09465784]
[1767709724290,0.09012,94376.0,94357.0,0.09465784]
[1767709724686,0.09012,94376.0,94358.0,0.0106]
[1767709724889,0.09012,94376.0,94358.0,0.10525784]
[1767709726492,0.09012,94376.0,94361.0,0.0106]
[1767709727192,0.09012,94376.0,94364.0,0.010599]
[1767709727488,0.0631618,94390.0,94364.0,0.07567585]
[1767709727685,0.09012,94389.0,94368.0,0.09465784]
[1767709727886,0.010596,94393.0,94369.0,0.09465784]
[1767709728090,0.09012,94392.0,94371.0,0.09465784]
[1767709728891,0.010596,94391.0,94371.0,0.09465784]
[1767709729594,0.06732183,94391.0,94371.0,0.09465784]
[1767709730291,0.010597,94389.0,94371.0,0.09465784]
[1767709730692,0.010597,94387.0,94371.0,0.09465784]
[1767709732693,0.010597,94384.0,94371.0,0.09465784]
[1767709733290,0.06471759,94387.0,94371.0,0.09465784]
[1767709733496,0.06471759,94387.0,94365.0,0.17033369]
[1767709733695,0.06471759,94387.0,94365.0,0.09465784]
[1767709734391,0.010597,94385.0,94365.0,0.09465784]
[1767709734601,0.06460856,94381.0,94359.0,0.09465784]
[1767709734786,0.09012,94380.0,94360.0,0.10525784]
[1767709735390,0.05401056,94377.0,94357.0,0.0106]
[1767709735895,0.05401056,94377.0,94358.0,0.09465784]
[1767709736486,0.010598,94376.0,94358.0,0.09465784]
[1767709737694,0.05401056,94377.0,94358.0,0.09465784]
[1767709738194,0.05401056,94377.0,94361.0,0.0106]
[1767709738600,0.05401056,94377.0,94358.0,0.09465784]
[1767709739293,0.05401056,94377.0,94358.0,0.10525784]
[1767709739493,0.05401056,94377.0,94358.0,0.09465784]
[1767709740295,0.09012,94376.0,94365.0,0.010599]
[1767709740599,0.09012,94375.0,94365.0,0.10343922]
[1767709740992,0.09012,94377.0,94365.0,0.10343922]
[1767709741902,0.09012,94377.0,94365.0,0.09284022]
[1767709742091,0.010598,94376.0,94365.0,0.09284022]
[1767709742292,0.09012,94377.0,94365.0,0.09284022]
[1767709742494,0.100718,94377.0,94365.0,0.09284022]
[1767709743101,0.010598,94375.0,94365.0,0.09284022]
[1767709743597,0.010598,94375.0,94357.0,0.09651407]
[1767709743799,0.010598,94373.0,94357.0,0.09651407]
[1767709744005,0.05017405,94370.0,94351.0,0.09651407]
[1767709744203,0.05017405,94370.0,94335.0,0.09467783]
[1767709744204,0.010599,94367.0,94343.0,0.06519155]
[1767709744503,0.010599,94367.0,94341.0,0.09400483]
[1767709744504,0.09012,94366.0,94340.0,0.18412483]
[1767709744897,0.09012,94366.0,94346.0,0.010601]
[1767709745095,0.010598,94374.0,94354.0,0.0106]
[1767709745295,0.06891852,94379.0,94340.0,0.09012]
[1767709745496,0.010593,94418.0,94340.0,0.18412483]
[1767709745497,0.010598,94377.0,94340.0,0.18412483]
[1767709745699,0.06891852,94383.0,94350.0,0.010601]
[1767709745899,0.06891852,94381.0,94350.0,0.010601]
[1767709746099,0.010599,94371.0,94350.0,0.010601]
[1767709746400,0.010599,94371.0,94351.0,0.09651407]
[1767709746608,0.010599,94371.0,94352.0,0.16446955]
[1767709746810,0.06891852,94372.0,94353.0,0.09651407]
[1767709747804,0.09581578,94375.0,94347.0,0.16446955]
[1767709747805,0.06891852,94370.0,94347.0,0.16446955]
[1767709748109,0.010599,94366.0,94347.0,0.09651407]
[1767709748993,0.07951752,94370.0,94350.0,0.10711507]
[1767709749191,0.09581578,94367.0,94341.0,0.09400483]
[1767709749401,0.09581578,94367.0,94330.0,0.09012]
[1767709749402,0.06891852,94359.0,94337.0,0.09651407]
[1767709749598,0.09012,94358.0,94338.0,0.09651407]
[1767709749808,0.09012,94358.0,94342.0,0.09651407]
[1767709751796,0.09012,94358.0,94330.0,0.17625179]
[1767709751797,0.09012,94358.0,94336.0,0.09651407]
[1767709752209,0.0106,94357.0,94336.0,0.09651407]
[1767709753009,0.0106,94357.0,94336.0,0.16446955]
[1767709753308,0.09012,94358.0,94340.0,0.09651407]
[1767709753604,0.10072,94358.0,94340.0,0.09651407]
[1767709754613,0.0106,94356.0,94335.0,0.06795548]
[1767709754807,0.0106,94356.0,94336.0,0.16446955]
[1767709755109,0.0106,94356.0,94337.0,0.09651407]
[1767709755493,0.0106,94356.0,94338.0,0.06795548]
[1767709755696,0.00442469,104860.0,94348.0,0.16446955]
[1767709755697,0.06891852,94376.0,94348.0,0.16446955]
[1767709755910,0.010599,94370.0,94352.0,0.06795548]
[1767709756206,0.010599,94370.0,94353.0,0.09651407]
[1767709756601,0.07951752,94370.0,94348.0,0.09651407]
[1767709756802,0.010599,94367.0,94348.0,0.09651407]
[1767709757002,0.010599,94365.0,94348.0,0.09651407]
[1767709757404,0.0106,94361.0,94342.0,0.16446955]
[1767709757908,0.0106,94361.0,94332.0,0.010603]
[1767709757909,0.07951952,94354.0,94334.0,0.09651407]
[1767709758113,0.06891852,94352.0,94329.0,0.05458955]
[1767709758804,0.06891852,94349.0,94325.0,0.09401061]
[1767709759002,0.06891852,94349.0,94324.0,0.09401061]
[1767709759798,0.09012,94353.0,94325.0,0.010604]
[1767709760005,0.09012,94353.0,94328.0,0.09651407]
[1767709760406,0.09012,94353.0,94331.0,0.09651407]
[1767709760607,0.06891852,94350.0,94324.0,0.09651407]
[1767709760806,0.09581578,94351.0,94328.0,0.09651407]
[1767709761717,0.15903852,94353.0,94334.0,0.09651407]
[1767709762407,0.09012,94352.0,94334.0,0.09651407]
[1767709762609,0.09012,94351.0,94328.0,0.16446955]
[1767709762802,0.07951952,94353.0,94323.0,0.09401061]
[1767709762803,0.06891852,94353.0,94336.0,0.09651407]
[1767709763010,0.09012,94352.0,94336.0,0.09651407]
[1767709764018,0.09012,94351.0,94336.0,0.09651407]
[1767709764515,0.0106,94361.0,94338.0,0.06795548]
[1767709764713,0.09016,94362.0,94349.0,0.09651407]
[1767709764904,0.09016,94365.0,94350.0,0.16446955]
[1767709765103,0.10641378,94376.0,94354.0,0.09651407]
[1767709765321,0.09016,94375.0,94357.0,0.09651407]
[1767709766834,0.010598,94374.0,94357.0,0.09651407]
[1767709767431,0.010599,94371.0,94351.0,0.06795548]
[1767709767626,0.010599,94372.0,94350.0,0.09651407]
[1767709768726,0.010599,94372.0,94351.0,0.09651407]
[1767709769127,0.18597578,94375.0,94352.0,0.16446955]
[1767709769327,0.010599,94371.0,94352.0,0.16446955]
[1767709769526,0.18597578,94375.0,94352.0,0.16446955]
[1767709769732,0.010599,94370.0,94352.0,0.09651407]
[1767709770840,0.010598,94374.0,94352.0,0.16446955]
[1767709771030,0.010598,94374.0,94353.0,0.09651407]
[1767709771232,0.010599,94371.0,94353.0,0.09651407]
[1767709771425,0.19657378,94375.0,94353.0,0.09651407]
[1767709771625,0.09016,94375.0,94359.0,0.09890899]
[1767709771828,0.09016,94375.0,94360.0,0.09890899]
[1767709773731,0.09016,94375.0,94359.0,0.09890899]
[1767709774429,0.010598,94374.0,94359.0,0.09890899]
[1767709777241,0.010599,94372.0,94359.0,0.09890899]
[1767709778344,0.100758,94375.0,94359.0,0.09890899]
[1767709780645,0.010599,94372.0,94359.0,0.09890899]
[1767709780854,0.010599,94369.0,94359.0,0.09890899]
[1767709781434,0.06783962,94378.0,94359.0,0.09890899]
[1767709781844,0.12219673,94370.0,94359.0,0.09890899]
[1767709782045,0.010599,94367.0,94347.0,0.06158799]
[1767709782243,0.010599,94367.0,94349.0,0.16049698]
[1767709782446,0.010599,94365.0,94351.0,0.16049698]
[1767709782946,0.0106,94363.0,94351.0,0.16049698]
[1767709784243,0.12219673,94361.0,94338.0,0.16049698]
[1767709784449,0.0106,94358.0,94342.0,0.25061698]
[1767709784743,0.0106,94357.0,94345.0,0.06158799]
[1767709785044,0.09012,94374.0,94354.0,0.09890899]
[1767709785235,0.010599,94365.0,94355.0,0.09890899]
[1767709785435,0.0106,94358.0,94343.0,0.09890899]
[1767709785634,0.0106,94361.0,94344.0,0.06158799]
[1767709785845,0.0106,94361.0,94347.0,0.09890899]
[1767709786053,0.010599,94364.0,94349.0,0.16049698]
[1767709786349,0.06783962,94384.0,94362.0,9.8e-07]
[1767709786642,0.010599,94366.0,94344.0,0.010602]
[1767709787350,0.12219673,94370.0,94350.0,0.12219673]
[1767709787853,0.12219673,94370.0,94344.0,0.010602]
[1767709788042,0.010599,94367.0,94350.0,0.12219673]
[1767709788238,0.010599,94367.0,94344.0,0.010602]
[1767709788547,0.13279573,94370.0,94352.0,0.16049698]
[1767709789443,0.13279573,94370.0,94353.0,0.06158799]
[1767709789744,0.09012,94371.0,94359.0,0.16049698]
[1767709789945,0.010598,94376.0,94360.0,0.06158799]
[1767709790166,0.100718,94377.0,94361.0,0.06158799]
[1767709790648,0.12219673,94380.0,94361.0,0.06158799]
[1767709790843,0.12219673,94371.0,94356.0,0.06158799]
[1767709791038,0.12219673,94370.0,94356.0,0.09890899]
[1767709791245,0.09012,94387.0,94361.0,0.06158799]
[1767709791246,0.06783962,94383.0,94361.0,0.06158799]
[1767709791439,0.15795962,94387.0,94366.0,0.06158799]
[1767709791640,0.010597,94383.0,94367.0,0.06158799]
[1767709791835,0.09012,94387.0,94371.0,0.06158799]
[1767709792040,0.09012,94387.0,94373.0,0.06158799]
[1767709792248,0.09012,94387.0,94374.0,0.06158799]
[1767709792654,0.09012,94387.0,94373.0,0.09890899]
[1767709794454,0.09012,94387.0,94377.0,0.06158799]
[1767709794847,0.17056347,94398.0,94377.0,0.06158799]
[1767709795050,0.12219673,94400.0,94380.0,0.18378472]
[1767709795051,0.09012,94397.0,94380.0,0.18378472]
[1767709795250,0.09012,94397.0,94380.0,0.06158799]
[1767709795645,0.09012,94397.0,94380.0,0.18378472]
[1767709795845,0.010596,94395.0,94377.0,0.09890899]
[1767709796045,0.12219673,94390.0,94377.0,0.09890899]
[1767709796244,0.010596,94395.0,94377.0,0.09890899]
[1767709796449,0.12219673,94390.0,94375.0,0.06158799]
[1767709796949,0.010596,94393.0,94376.0,0.06158799]
[1767709797150,0.13279373,94390.0,94376.0,0.06158799]
[1767709797353,0.010597,94390.0,94376.0,0.06158799]
[1767709797649,0.12219673,94390.0,94376.0,0.06158799]
[1767709797849,0.12219673,94390.0,94377.0,0.06158799]
[1767709798049,0.12219673,94390.0,94376.0,0.09890899]
[1767709798249,0.010596,94393.0,94376.0,0.09890899]
[1767709798450,0.12219673,94390.0,94376.0,0.09890899]
[1767709799155,0.010596,94396.0,94379.0,0.06158799]
[1767709799351,0.09012,94397.0,94384.0,0.06158799]
[1767709799855,0.09012,94397.0,94368.0,0.09012]
[1767709799856,0.010595,94403.0,94387.0,0.18378472]
[1767709800148,0.09212785,94412.0,94387.0,0.06158799]
[1767709800349,0.0590973,94399.0,94378.0,0.06049663]
[1767709800548,0.010596,94395.0,94378.0,0.06049663]
[1767709800746,0.15218719,94399.0,94370.0,0.12214968]
[1767709800747,0.12214968,94390.0,94376.0,1.5]
[1767709800946,0.12214968,94390.0,94373.0,0.09204371]
[1767709801149,0.010593,94423.0,94344.0,0.09401061]
[1767709801150,0.05825233,94381.0,94344.0,0.09401061]
[1767709801357,0.12214968,94370.0,94350.0,0.13275068]
[1767709801659,0.09879492,94364.0,94346.0,0.15808963]
[1767709801948,0.010598,94380.0,94339.0,8.986e-05]
[1767709801949,0.09879492,94362.0,94339.0,8.986e-05]
[1767709802149,0.010599,94368.0,94343.0,0.010602]
[1767709802357,0.0106,94357.0,94339.0,8.986e-05]
[1767709802652,0.09012,94371.0,94339.0,8.986e-05]
[1767709802653,0.05825233,94364.0,94339.0,8.986e-05]
[1767709802958,0.05825233,94364.0,94319.0,0.01302546]
[1767709802959,0.15997707,94350.0,94319.0,0.00212047]
[1767709803143,0.10939692,94343.0,94320.0,0.09222765]
[1767709803348,0.10939692,94343.0,94319.0,0.00212047]
[1767709803349,0.10939692,94338.0,94319.0,0.00212047]
[1767709803661,0.09879492,94336.0,94319.0,0.00212047]
[1767709803866,0.09879492,94335.0,94319.0,0.00212047]
[1767709804048,0.05825233,94333.0,94319.0,0.00212047]
[1767709804246,0.09879492,94330.0,94308.0,0.09012]
[1767709804549,0.09879492,94330.0,94308.0,0.15338103]
[1767709804956,0.09879492,94330.0,94309.0,0.06326103]
[1767709805359,8.986e-05,94334.0,94313.0,0.06326103]
[1767709805652,0.05825233,94348.0,94319.0,0.06326103]
[1767709805852,0.09879492,94339.0,94313.0,0.06326103]
[1767709806061,0.06885433,94340.0,94304.0,0.010606]
[1767709806062,0.09879492,94328.0,94309.0,0.09012]
[1767709806257,0.09879492,94328.0,94305.0,0.06326103]
[1767709806457,0.09879492,94324.0,94304.0,0.09012]
[1767709806662,0.09879492,94324.0,94298.0,0.06326103]
[1767709806854,0.09879492,94323.0,94299.0,0.09012]
[1767709807159,0.09879492,94322.0,94300.0,0.09012]
[1767709807751,0.09012,94327.0,94302.0,0.06326103]
[1767709808058,0.09879492,94326.0,94302.0,0.06326103]
[1767709808260,0.09879492,94323.0,94300.0,0.09012]
[1767709808460,0.09016,94334.0,94309.0,0.06326103]
[1767709808652,0.09016,94341.0,94314.0,0.06326103]
[1767709808852,0.09016,94342.0,94316.0,0.06326103]
[1767709809162,0.15704725,94332.0,94306.0,0.09222765]
[1767709809357,0.09879492,94329.0,94303.0,0.06326103]
[1767709809554,0.09879492,94326.0,94304.0,0.09016]
[1767709809752,0.09879492,94326.0,94298.0,0.09222765]
[1767709809954,0.09879492,94326.0,94299.0,0.09016]
[1767709810359,0.100763,94331.0,94307.0,0.06326103]
[1767709810559,0.010603,94331.0,94307.0,0.06326103]
[1767709810860,0.09879492,94331.0,94309.0,0.06326103]
[1767709811060,0.010603,94330.0,94308.0,0.09222765]
[1767709811456,0.010604,94327.0,94303.0,0.06326103]
[1767709811660,0.10939892,94327.0,94303.0,0.06326103]
[1767709811968,0.10939892,94325.0,94299.0,0.09016]
[1767709812460,0.09879492,94325.0,94299.0,0.09016]
[1767709812656,0.09016,94332.0,94309.0,0.06326103]
[1767709813158,0.18895492,94332.0,94309.0,0.06326103]
[1767709813462,0.05825233,94330.0,94304.0,0.06326103]
[1767709813652,0.09016,94332.0,94304.0,0.06326103]
[1767709813653,0.10939892,94322.0,94304.0,0.06326103]
[1767709814053,0.09879492,94321.0,94304.0,0.06326103]
[1767709814456,0.09879492,94320.0,94304.0,0.06326103]
[1767709814661,0.09879492,94313.0,94287.0,0.09222765]
[1767709814959,0.05825233,94310.0,94284.0,0.09222765]
[1767709815162,0.29008,94335.0,94271.0,9.941e-05]
[1767709815163,0.010604,94323.0,94293.0,0.09222765]
[1767709815364,0.09016,94322.0,94295.0,0.09222765]
[1767709815559,0.09879492,94327.0,94299.0,0.09222765]
[1767709815860,0.09016,94326.0,94299.0,0.09222765]
[1767709816058,0.09879492,94327.0,94299.0,0.09222765]
[1767709816663,0.14841233,94331.0,94290.0,0.09016]
[1767709816664,0.09879492,94317.0,94291.0,0.09222765]
[1767709816865,0.09879492,94314.0,94291.0,0.09222765]
[1767709817165,0.09016,94331.0,94284.0,0.09222765]
[1767709817166,0.10940092,94309.0,94284.0,0.09222765]
[1767709817361,0.09879492,94306.0,94272.0,0.09222765]
[1767709817562,0.09879492,94297.0,94273.0,0.09016]
[1767709817761,0.010605,94317.0,94265.0,0.09222765]
[1767709817762,0.09879492,94296.0,94265.0,0.09222765]
[1767709817964,0.09016,94301.0,94265.0,0.09222765]
[1767709817965,0.10940192,94293.0,94265.0,0.09222765]
[1767709818157,0.09879492,94293.0,94271.0,0.09025941]
[1767709818859,0.09879492,94293.0,94272.0,0.01061]
[1767709819169,0.010606,94303.0,94271.0,0.09025941]
[1767709819170,0.09879492,94306.0,94277.0,0.09222765]